fUSD/lending_fUSD_20240319
["ID","MTS","AMOUNT","RATE_DAILY","PERIOD"]
[319509797,1710814244708,-581.4630286,0.0004001,15]
[319509798,1710814244717,-155.54946682,0.00040099,4]
[319509799,1710814244727,-30000.0,0.000401,60]
[319509800,1710814244736,-674.47396698,0.000401,32]
[319509801,1710814244745,-151.031911,0.00040198,28]
[319509802,1710814244754,-566.06549,0.0004023,3]
[319509803,1710814244764,-566.0655,0.0004026,3]
[319509804,1710814244773,-770.6051398,0.00040305,2]
[319509805,1710814244783,-566.0655,0.0004034,4]
[319509806,1710814244793,-151.64633502,0.00040349,8]
[319509807,1710814244803,-154.37680239,0.0004039,34]
[319509808,1710814244815,-2000.0,0.000404,7]
[319509809,1710814244825,-200.0,0.000404,7]
[319509810,1710814244834,-200.0,0.000404,7]
[319509811,1710814244843,-566.0655,0.0004042,4]
[319509812,1710814244854,-151.031911,0.00040498,27]
[319509813,1710814244863,-566.0655,0.000405,4]
[319509814,1710814244872,-150.0,0.00040514,2]
[319509815,1710814244882,-566.0655,0.0004058,5]
[319509816,1710814244892,-632.0,0.00040624,28]
[319509817,1710814244902,-151.031911,0.00040798,28]
[319509818,1710814244911,-2000.0,0.00040804,7]
[319509819,1710814244921,-200.0,0.00040804,7]
[319509820,1710814244930,-9999.0,0.00041,90]
[319509821,1710814244940,-9999.0,0.00041,90]
[319509822,1710814244949,-9999.0,0.00041,90]
[319509823,1710814244958,-9999.0,0.00041,90]
[319509824,1710814244967,-9999.0,0.00041,90]
[319509825,1710814244977,-7184.35,0.00041,90]
[319509826,1710814244987,-1004.40285294,0.00041,30]
[319509827,1710814244997,-300.0,0.00041,41]
[319509828,1710814245006,-719.53750287,0.00041,7]
[319509829,1710814245015,-611.06242276,0.00041,7]
[319509830,1710814245025,-183.0,0.00041096,2]
[319509831,1710814245035,-160.17,0.00041096,2]
[319509832,1710814245044,-151.031911,0.00041198,27]
[319509833,1710814245053,-2000.0,0.00041212,7]
[319509834,1710814245062,-200.0,0.00041212,7]
[319509835,1710814245071,-411.31302605,0.0004134,2]
[319509836,1710814245080,-4975.75520906,0.0004134,2]
[319509837,1710814245090,-9099.38292271,0.0004134,2]
[319509838,1710814245099,-451.97314213,0.0004134,2]
[319509839,1710814245108,-632.0,0.00041436,28]
[319509840,1710814245117,-151.031911,0.00041498,28]
[319509841,1710814245126,-150.0,0.000415,71]
[319509842,1710814245135,-1867.05569949,0.00041624,7]
[319509843,1710814245144,-200.0,0.00041624,7]
[319509844,1710814245153,-151.031911,0.00041798,28]
[319509845,1710814245162,-5090.8,0.00041849,87]
[319509846,1710814245171,-500.0,0.00042,120]
[319509847,1710814245184,-1000.0,0.00042,30]
[319509848,1710814245194,-1000.0,0.00042,30]
[319509849,1710814245204,-790.11426805,0.00042,7]
[319509850,1710814245219,-718.0,0.00042,7]
[319509851,1710814245228,-610.0,0.00042,7]
[319509852,1710814245238,-598.84,0.00042079,2]
[319509853,1710814245247,-2268.22756815,0.0004214,2]
[319509854,1710814245256,-151.031911,0.00042198,28]
[319509855,1710814245266,-151.031911,0.00042198,21]
[319509856,1710814245275,-632.0,0.00042249,28]
[319509857,1710814245284,-168.79,0.00042466,10]
[319509858,1710814245293,-151.031911,0.00042498,28]
[319509859,1710814245303,-151.031911,0.00042498,21]
[319509860,1710814245312,-2579.35417498,0.00042733,4]
[319509861,1710814245322,-20628.96022666,0.00042754,17]
[319509862,1710814245333,-151.031911,0.00042798,28]
[319509863,1710814245342,-151.031911,0.00042798,21]
[319509864,1710814245351,-1000.0,0.00043,30]
[319509865,1710814245360,-1000.0,0.00043,30]
[319509866,1710814245370,-300.0,0.00043,43]
[319509867,1710814245379,-632.0,0.00043061,28]
[319509868,1710814245388,-800.0,0.0004311,20]
[319509869,1710814245397,-200.0,0.0004311,20]
[319509870,1710814245406,-151.031911,0.00043198,28]
[319509871,1710814245416,-151.031911,0.00043198,21]
[319509872,1710814245425,-151.031911,0.00043498,28]
[319509873,1710814245440,-151.031911,0.00043498,21]
[319509874,1710814245449,-12213.86276849,0.00043518,10]
[319509875,1710814245458,-2473.09,0.00043562,2]
[319509876,1710814245467,-637.77,0.00043562,2]
[319509877,1710814245475,-151.031911,0.00043798,28]
[319509878,1710814245485,-151.031911,0.00043798,21]
[319509879,1710814245494,-5000.0,0.000438,30]
[319509880,1710814245503,-151.031911,0.00043998,28]
[319509881,1710814245512,-8000.0,0.00044,3]
[319509882,1710814245522,-1000.0,0.00044,30]
[319509883,1710814245531,-1000.0,0.00044,30]
[319509884,1710814245540,-426.98250792,0.00044044,2]
[319509885,1710814245549,-151.031911,0.00044198,28]
[319509886,1710814245559,-151.031911,0.00044198,21]
[319509887,1710814245568,-598.84,0.00044343,2]
[319509888,1710814245577,-151.031911,0.00044498,28]
[319509889,1710814245586,-151.64633502,0.00044757,24]
[319509890,1710814245596,-151.031911,0.00044798,28]
[319509891,1710814245605,-11633.64533503,0.000449,120]
[319509892,1710814245614,-5000.0,0.00044986,4]
[319509893,1710814245624,-490.68392151,0.00045,4]
[319509894,1710814245633,-2206.13355047,0.00045,14]
[319509895,1710814245642,-1000.0,0.00045,30]
[319509896,1710814245651,-1000.0,0.00045,30]
[319509897,1710814245660,-300.0,0.00045,45]
[319509898,1710814245668,-5553.59,0.00045144,106]
[319509899,1710814245677,-151.031911,0.00045198,28]
[319509900,1710814245689,-674.47396698,0.000452,39]
[319509901,1710814245698,-500.0,0.00045259,30]
[319509902,1710814245707,-150.0,0.00045589,10]
[319509903,1710814245716,-151.031911,0.00045798,28]
[319509904,1710814245725,-500.0,0.00045807,30]
[319509905,1710814245734,-1000.0,0.00046,30]
[319509906,1710814245743,-1000.0,0.00046,30]
[319509907,1710814245753,-20628.96022666,0.00046013,21]
[319509908,1710814245763,-151.031911,0.00046198,28]
[319509909,1710814245772,-500.0,0.00046355,30]
[319509910,1710814245782,-151.031911,0.00046498,28]
[319509911,1710814245796,-204.85396714,0.000465,120]
[319509912,1710814245805,-5497.47297793,0.00046554,120]
[319509913,1710814245814,-6010.95083243,0.0004658,48]
[319509914,1710814245824,-598.84,0.00046607,2]
[319509915,1710814245834,-150.0,0.00046736,7]
[319509916,1710814245843,-2579.35417498,0.00046755,8]
[319509917,1710814245852,-405.40435421,0.00046903,30]
[319509918,1710814245862,-1000.0,0.00047,120]
[319509919,1710814245873,-55555.0,0.00047,62]
[319509920,1710814245883,-300.0,0.00047,47]
[319509921,1710814245891,-150.0,0.00047119,7]
[319509922,1710814245901,-151.031911,0.00047198,28]
[319509923,1710814245911,-150.0,0.00047277,7]
[319509924,1710814245920,-150.0,0.00047305,7]
[319509925,1710814245929,-150.0,0.00047392,7]
[319509926,1710814245941,-150.0,0.00047399,60]
[319509927,1710814245950,-150.0,0.00047479,7]
[319509928,1710814245959,-202.27804945,0.00047487,3]
[319509929,1710814245969,-150.0,0.00047496,7]
[319509930,1710814245979,-151.031911,0.00047498,28]
[319509931,1710814245989,-2110.0,0.00047499,15]
[319509932,1710814245999,-150.0,0.00047521,7]
[319509933,1710814246008,-150.0,0.00047523,7]
[319509934,1710814246018,-150.0,0.00047546,7]
[319509935,1710814246028,-150.0,0.00047553,7]
[319509936,1710814246037,-200.0,0.00047582,25]
[319509937,1710814246046,-800.0,0.00047582,25]
[319509938,1710814246055,-200.0,0.00047582,30]
[319509939,1710814246065,-500.0,0.00047582,30]
[319509940,1710814246074,-150.0,0.00047584,7]
[319509941,1710814246083,-150.0,0.00047595,7]
[319509942,1710814246092,-150.0,0.00047608,7]
[319509943,1710814246102,-150.0,0.00047666,7]
[319509944,1710814246111,-155.58565314,0.00047719,10]
[319509945,1710814246120,-500.0,0.00047727,2]
[319509946,1710814246129,-500.0,0.00047727,2]
[319509947,1710814246138,-500.0,0.00047727,2]
[319509948,1710814246148,-308.1238,0.00047727,2]
[319509949,1710814246157,-1000.0,0.00047727,2]
[319509950,1710814246166,-1000.0,0.00047727,2]
[319509951,1710814246175,-1000.0,0.00047727,2]
[319509952,1710814246188,-1000.0,0.00047727,2]
[319509953,1710814246197,-1000.0,0.00047727,2]
[319509954,1710814246206,-1000.0,0.00047727,2]
[319509955,1710814246215,-1000.0,0.00047727,2]
[319509956,1710814246224,-1000.0,0.00047727,2]
[319509957,1710814246233,-1000.0,0.00047727,2]
[319509958,1710814246243,-1000.0,0.00047727,2]
[319509959,1710814246252,-1000.0,0.00047727,2]
[319509960,1710814246261,-1000.0,0.00047727,2]
[319509961,1710814246270,-1000.0,0.00047727,2]
[319509962,1710814246279,-1000.0,0.00047727,2]
[319509963,1710814246288,-1000.0,0.00047727,2]
[319509964,1710814246297,-1000.0,0.00047727,2]
[319509965,1710814246306,-1000.0,0.00047727,2]
[319509966,1710814246316,-1000.0,0.00047727,2]
[319509967,1710814246325,-1000.0,0.00047727,2]
[319509968,1710814246334,-1000.0,0.00047727,2]
[319509969,1710814246343,-1000.0,0.00047727,2]
[319509970,1710814246352,-1000.0,0.00047727,2]
[319509971,1710814246361,-1000.0,0.00047727,2]
[319509972,1710814246370,-1000.0,0.00047727,2]
[319509973,1710814246380,-1000.0,0.00047727,2]
[319509974,1710814246389,-1000.0,0.00047727,2]
[319509975,1710814246398,-1000.0,0.00047727,2]
[319509976,1710814246407,-1000.0,0.00047727,2]
[319509977,1710814246416,-1000.0,0.00047727,2]
[319509978,1710814246425,-1000.0,0.00047727,2]
[319509979,1710814246437,-1000.0,0.00047727,2]
[319509980,1710814246446,-1000.0,0.00047727,2]
[319509981,1710814246455,-1000.0,0.00047727,2]
[319509982,1710814246464,-1000.0,0.00047727,2]
[319509983,1710814246475,-1000.0,0.00047727,2]
[319509984,1710814246484,-1000.0,0.00047727,2]
[319509985,1710814246494,-1000.0,0.00047727,2]
[319509986,1710814246503,-1000.0,0.00047727,2]
[319509987,1710814246513,-1000.0,0.00047727,2]
[319509988,1710814246523,-153.2371,0.00047727,2]
[319509989,1710814246532,-500.0,0.00047727,2]
[319509990,1710814246542,-505.6717,0.00047727,2]
[319509992,1710814246551,-2000.0,0.00047759,5]
[319509994,1710814246560,-2000.0,0.00047759,5]
[319509995,1710814246569,-150.0,0.00047763,7]
[319509996,1710814246578,-892.73574045,0.0004777,120]
[319509997,1710814246595,-214.19113225,0.00047774,7]
[319509998,1710814246607,-150.0,0.00047789,7]
[319509999,1710814246617,-2609.829,0.00047897,58]
[319510000,1710814246626,-206.08883422,0.00047899,7]
[319510001,1710814246635,-150.0,0.000479,25]
[319510002,1710814246645,-200.0,0.000479,17]
[319510003,1710814246654,-150.0,0.00047916,7]
[319510004,1710814246663,-3161.4281772,0.00047966,2]
[319510005,1710814246672,-150.0,0.00047984,7]
[319510006,1710814246683,-202.71109462,0.00047999,30]
[319510007,1710814246920,-1019.76573076,0.00047999,30]
[319510008,1710814246933,-2251.48,0.00047999,15]
[319510009,1710814246943,-200000.0,0.00048,48]
[319510010,1710814246953,-250.0,0.00048,120]
[319510011,1710814246963,-890.0,0.00048,20]
[319510012,1710814246973,-1000.0,0.00048,120]
[319510013,1710814246983,-150.0,0.00048,10]
[319510014,1710814246993,-6440.73,0.00048,120]
[319510015,1710814247002,-935073.66306864,0.00048,60]
[319510016,1710814247012,-40000.0,0.00048,120]
[319510017,1710814247021,-39004.2820542,0.00048,120]
[319510018,1710814247031,-151.0,0.00048,14]
[319510019,1710814247039,-151.0,0.00048,14]
[319510020,1710814247049,-151.0,0.00048,14]
[319510021,1710814247058,-151.0,0.00048,14]
[319510022,1710814247067,-151.0,0.00048,14]
[319510023,1710814247076,-151.0,0.00048,14]
[319510024,1710814247085,-151.0,0.00048,14]
[319510025,1710814247094,-151.0,0.00048,14]
[319510026,1710814247103,-151.0,0.00048,14]
[319510027,1710814247113,-151.0,0.00048,14]
[319510028,1710814247122,-151.0,0.00048,14]
[319510029,1710814247131,-232.372563,0.00048,14]
[319510030,1710814247140,-151.0,0.00048,14]
[319510031,1710814247149,-234.738078,0.00048,14]
[319510032,1710814247159,-155.613252,0.00048,14]
[319510033,1710814247168,-151.829558,0.00048,14]
[319510034,1710814247177,-151.0,0.00048,14]
[319510035,1710814247189,-151.0,0.00048,14]
[319510036,1710814247198,-253.002405,0.00048,14]
[319510037,1710814247208,-154.224244,0.00048,14]
[319510038,1710814247217,-151.0,0.00048,14]
[319510039,1710814247226,-154.540216,0.00048,14]
[319510040,1710814247235,-240.354799,0.00048,25]
[319510041,1710814247244,-151.0,0.00048,14]
[319510042,1710814247253,-221.600372,0.00048,14]
[319510043,1710814247262,-151.0,0.00048,14]
[319510044,1710814247271,-151.0,0.00048,14]
[319510045,1710814247280,-151.0,0.00048,14]
[319510046,1710814247289,-151.0,0.00048,14]
[319510047,1710814247298,-173.164093,0.00048,14]
[319510048,1710814247307,-151.0,0.00048,14]
[319510049,1710814247316,-151.0,0.00048,14]
[319510050,1710814247325,-340.513974,0.00048,14]
[319510051,1710814247335,-151.0,0.00048,14]
[319510052,1710814247344,-340.513974,0.00048,14]
[319510053,1710814247353,-151.0,0.00048,14]
[319510054,1710814247363,-340.513974,0.00048,14]
[319510055,1710814247372,-340.513974,0.00048,14]
[319510056,1710814247381,-151.0,0.00048,14]
[319510057,1710814247390,-151.0,0.00048,14]
[319510058,1710814247399,-151.0,0.00048,14]
[319510059,1710814247409,-152.602927,0.00048,14]
[319510060,1710814247418,-151.0,0.00048,14]
[319510061,1710814247427,-151.0,0.00048,14]
[319510062,1710814247440,-151.0,0.00048,14]
[319510063,1710814247450,-151.0,0.00048,14]
[319510064,1710814247459,-151.0,0.00048,14]
[319510065,1710814247469,-157.640649,0.00048,14]
[319510066,1710814247479,-223.345179,0.00048,7]
[319510067,1710814247488,-151.0,0.00048,14]
[319510068,1710814247497,-151.0,0.00048,14]
[319510069,1710814247506,-151.0,0.00048,14]
[319510070,1710814247515,-151.0,0.00048,14]
[319510071,1710814247524,-1833.576335,0.00048,14]
[319510072,1710814247534,-1833.576335,0.00048,14]
[319510073,1710814247544,-1833.576335,0.00048,14]
[319510074,1710814247553,-1833.576335,0.00048,14]
[319510075,1710814247562,-205.770076,0.00048,14]
[319510076,1710814247572,-151.0,0.00048,14]
[319510077,1710814247581,-155.408843,0.00048,14]
[319510078,1710814247596,-151.0,0.00048,14]
[319510079,1710814247606,-209.071994,0.00048,14]
[319510080,1710814247616,-2968.022906,0.00048197,2]
[319510081,1710814247626,-65674.7659618,0.0004823,2]
[319510082,1710814247635,-2973.5345135,0.0004823,2]
[319510083,1710814247645,-1272.8478292,0.00048263,2]
[319510084,1710814247655,-4505.2961424,0.00048296,2]
[319510085,1710814247664,-633.0,0.00048329,90]
[319510086,1710814247673,-150.0,0.00048399,60]
[319510087,1710814247686,-6016.4,0.00048439,117]
[319510088,1710814247695,-250.0,0.000485,120]
[319510089,1710814247706,-4500.0,0.000488,120]
[319510090,1710814247716,-6000.0,0.000488,60]
[319510091,1710814247726,-598.84,0.00048871,2]
[319510092,1710814247736,-160.0,0.00048889,30]
[319510093,1710814247746,-1263.0,0.000489,60]
[319510094,1710814247756,-1075.96687989,0.000489,120]
[319510095,1710814247765,-150.5,0.0004897,15]
[319510096,1710814247775,-150.5,0.0004898,15]
[319510097,1710814247785,-6241.9784361,0.0004899,14]
[319510098,1710814247794,-150.5,0.0004899,15]
[319510099,1710814247807,-200000.0,0.00049,49]
[319510100,1710814247817,-200.0,0.00049,49]
[319510101,1710814247827,-720.62974557,0.00049,30]
[319510102,1710814247836,-3953.13971801,0.00049,2]
[319510103,1710814247847,-3000.0,0.00049,120]
[319510104,1710814247857,-27135.30508155,0.00049,60]
[319510105,1710814247866,-250.0,0.00049,120]
[319510106,1710814247876,-10000.0,0.00049,30]
[319510107,1710814247887,-1000.0,0.00049,120]
[319510108,1710814247897,-19252.92754646,0.00049,120]
[319510109,1710814247906,-177.0,0.00049,120]
[319510110,1710814247916,-674.65765451,0.00049,10]
[319510111,1710814247926,-25000.0,0.00049,120]
[319510112,1710814247939,-150.0,0.00049,10]
[319510113,1710814247948,-343.17491126,0.00049,30]
[319510114,1710814247958,-123830.6811285,0.00049,120]
[319510115,1710814247967,-151.319672,0.00049,14]
[319510116,1710814247978,-270.518001,0.00049,14]
[319510117,1710814247988,-151.0,0.00049,14]
[319510118,1710814247998,-151.0,0.00049,14]
[319510119,1710814248008,-151.0,0.00049,14]
[319510120,1710814248017,-151.64633502,0.00049166,41]
[319510121,1710814248028,-20628.96022666,0.00049272,25]
[319510122,1710814248038,-250.0,0.00049315,30]
[319510123,1710814248049,-253.0,0.00049315,30]
[319510124,1710814248059,-200.0,0.00049315,30]
[319510125,1710814248069,-250.0,0.00049315,30]
[319510126,1710814248079,-200.0,0.00049315,30]
[319510127,1710814248089,-268.0,0.00049315,30]
[319510128,1710814248098,-200.0,0.00049315,30]
[319510129,1710814248108,-200.0,0.00049315,30]
[319510130,1710814248118,-200.0,0.00049315,30]
[319510131,1710814248127,-200.0,0.00049315,30]
[319510132,1710814248137,-200.0,0.00049315,30]
[319510133,1710814248146,-500.0,0.00049315,15]
[319510134,1710814248157,-150.0,0.00049399,60]
[319510135,1710814248166,-158433.71544252,0.000495,120]
[319510136,1710814248176,-250.0,0.000495,120]
[319510137,1710814248190,-151.0,0.000495,120]
[319510138,1710814248199,-294.08113,0.000495,120]
[319510139,1710814248208,-58314.56593537,0.000497,120]
[319510140,1710814248218,-151.0,0.000497,120]
[319510141,1710814248227,-151.0,0.000497,120]
[319510142,1710814248237,-151.0,0.000497,120]
[319510143,1710814248247,-340.513974,0.000497,120]
[319510144,1710814248257,-340.513974,0.000497,120]
[319510145,1710814248267,-257.248682,0.000497,30]
[319510146,1710814248276,-151.0,0.000497,120]
[319510147,1710814248286,-156.257018,0.000497,120]
[319510148,1710814248296,-286.549198,0.000497,120]
[319510149,1710814248305,-151.0,0.000497,120]
[319510150,1710814248315,-1833.576335,0.000497,120]
[319510151,1710814248325,-1833.576335,0.000497,120]
[319510152,1710814248334,-627.0,0.0004971,120]
[319510153,1710814248343,-627.0,0.0004971,120]
[319510154,1710814248354,-113468.98995581,0.000498,30]
[319510155,1710814248364,-61442.41976025,0.000498,60]
[319510156,1710814248373,-200.0,0.000499,18]
[319510157,1710814248383,-426.98250792,0.000499,2]
[319510158,1710814248392,-4433.3221333,0.00049966,2]
[319510159,1710814248401,-1252.5135475,0.00049966,2]
[319510160,1710814248411,-62352.0174952,0.00049966,2]
[319510161,1710814248421,-2823.0915374,0.00049966,2]
[319510162,1710814248431,-2817.8587841,0.00049966,2]
[319510163,1710814248443,-2667.6946622,0.00049966,2]
[319510164,1710814248452,-400.0,0.00049986,120]
[319510165,1710814248462,-15147.23007174,0.0004999,30]
[319510166,1710814248471,-200.0,0.0004999,90]
[319510167,1710814248481,-200.0,0.0004999,90]
[319510168,1710814248490,-200.0,0.0004999,90]
[319510169,1710814248500,-200.0,0.0004999,90]
[319510170,1710814248509,-200.0,0.0004999,90]
[319510171,1710814248519,-200.0,0.0004999,90]
[319510172,1710814248528,-200.0,0.0004999,90]
[319510173,1710814248538,-200.0,0.0004999,90]
[319510174,1710814248548,-200.0,0.0004999,90]
[319510175,1710814248558,-200.0,0.0004999,90]
[319510176,1710814248567,-200.0,0.0004999,90]
[319510177,1710814248577,-200.0,0.0004999,90]
[319510178,1710814248587,-200.0,0.0004999,90]
[319510179,1710814248597,-200.0,0.0004999,90]
[319510180,1710814248606,-200.0,0.0004999,90]
[319510181,1710814248615,-200.0,0.0004999,90]
[319510182,1710814248624,-200.0,0.0004999,90]
[319510183,1710814248634,-200.0,0.0004999,90]
[319510184,1710814248644,-200.0,0.0004999,90]
[319510185,1710814248653,-200.0,0.0004999,90]
[319510186,1710814248662,-200.0,0.0004999,90]
[319510187,1710814248675,-200.0,0.0004999,90]
[319510188,1710814248687,-200.0,0.0004999,90]
[319510189,1710814248696,-200.0,0.0004999,90]
[319510190,1710814248706,-200.0,0.0004999,90]
[319510191,1710814248716,-200.0,0.0004999,90]
[319510192,1710814248726,-200.0,0.0004999,90]
[319510193,1710814248735,-200.0,0.0004999,90]
[319510194,1710814248746,-200.0,0.0004999,90]
[319510195,1710814248755,-200.0,0.0004999,90]
[319510196,1710814248765,-200.0,0.0004999,90]
[319510197,1710814248775,-200.0,0.0004999,90]
[319510198,1710814248786,-200.0,0.0004999,90]
[319510199,1710814248798,-200.0,0.0004999,90]
[319510200,1710814248808,-173.91919932,0.0004999,90]
[319510201,1710814248818,-200.0,0.0004999,90]
[319510202,1710814248828,-200.0,0.0004999,90]
[319510203,1710814248838,-15601.11401781,0.00049999,6]
[319510204,1710814248848,-391.05,0.00049999,15]
[319510205,1710814248858,-391.05,0.00049999,15]
[319510206,1710814248868,-391.05,0.00049999,15]
[319510207,1710814248879,-391.05,0.00049999,15]
[319510208,1710814248890,-391.05,0.00049999,15]
[319510209,1710814248900,-391.05,0.00049999,15]
[319510210,1710814248910,-391.05,0.00049999,15]
[319510211,1710814248919,-391.05,0.00049999,15]
[319510212,1710814248929,-391.05,0.00049999,15]
[319510213,1710814248940,-391.05,0.00049999,15]
[319510214,1710814248950,-151.0,0.00049999,120]
[319510215,1710814248960,-151.0,0.00049999,120]
[319510216,1710814248969,-151.0,0.00049999,120]
[319510217,1710814248980,-303.28994942,0.00049999,60]
[319510218,1710814248989,-44981.89542785,0.0005,50]
[319510219,1710814249720,-55018.10457215,0.0005,50]
[319510220,1710814249730,-155.0,0.0005,2]
[319510221,1710814249740,-150.0,0.0005,27]
[319510222,1710814249750,-163.92692532,0.0005,60]
[319510223,1710814249760,-43801.30741482,0.0005,30]
[319510224,1710814249770,-1003.59090799,0.0005,10]
[319510225,1710814249780,-216.55419777,0.0005,4]
[319510226,1710814249796,-232.98819908,0.0005,4]
[319510227,1710814249806,-32138.45303059,0.0005,120]
[319510228,1710814249818,-2560.16494296,0.0005,5]
[319510229,1710814249828,-77868.83724842,0.0005,120]
[319510230,1710814249841,-42899.422754,0.0005,120]
[319510231,1710814250602,-618.97854358,0.00015705,2]
[319510232,1710814250612,-9.20145642,0.000178,2]
[319510233,1710814250635,-660.03867542,0.000178,2]
[319510234,1710814250656,-1095.98524093,0.000178,2]
[319510235,1710814250668,-511.72248252,0.000178,2]
[319510236,1710814250762,-2710.77361301,0.000178,2]
[319510237,1710814250774,-1873.91229122,0.000178,2]
[319510238,1710814250786,-212.29661417,0.00020999,2]
[319510239,1710814250799,-699.6949829,0.00024237,2]
[319510240,1710814250811,-704.24021305,0.00024237,2]
[319510241,1710814250823,-217.14953063,0.00024237,2]
[319510242,1710814250835,-151.0,0.0004,14]
[319510243,1710814250846,-151.0,0.00048,14]
[319510244,1710814250856,-151.0,0.00048,14]
[319510245,1710814250866,-3473.06823861,0.0005,120]
[319510246,1710814250878,-13172.62808261,0.0005,120]
[319510247,1710814250925,-499.93016384,0.00019889,2]
[319510248,1710814250936,-6071.79747617,0.0005,120]
[319510249,1710814250954,-17543.06622809,0.0005,120]
[319510250,1710814250967,-4887.84382106,0.0005,120]
[319510251,1710814250979,-3604.33868498,0.0005,120]
[319510252,1710814250999,-53614.67069374,0.0005,120]
[319510253,1710814251052,-362.07140324,0.0005,120]
[319510254,1710814252077,-244.76854991,0.00019888,2]
[319510255,1710814252086,-205.18199546,0.00019888,2]
[319510256,1710814252095,-406.20702838,0.00019888,2]
[319510257,1710814252104,-1394.51005659,0.00019889,5]
[319510258,1710814252115,-910.07126,0.00019889,5]
[319510259,1710814252125,-294.85259954,0.00019889,5]
[319510260,1710814252142,-875.31837496,0.00019888,2]
[319510261,1710814252151,-751.55662504,0.00019889,5]
[319510262,1710814252162,-643.97892178,0.00019889,5]
[319510263,1710814253132,-495.71718931,0.00019889,5]
[319510264,1710814253149,-366.49928082,0.00019889,5]
[319510265,1710814253162,-838.21726146,0.00019889,5]
[319510266,1710814253183,-450.99758019,0.00019888,2]
[319510267,1710814253194,-16.71319908,0.00019889,5]
[319510268,1710814253228,-1466.19169403,0.00019889,5]
[319510269,1710814253239,-36152.34977037,0.0005,120]
[319510277,1710815432151,-406.20702838,0.00015242,2]
[319510278,1710815432161,-155.0,0.00015243,2]
[319510279,1710815432171,-213.0,0.00015243,2]
[319510280,1710815432185,-1773.39381582,0.00015244,5]
[319510281,1710815432216,-627.68,0.00015244,5]
[319510282,1710815432229,-1777.06670359,0.00015244,5]
[319510283,1710815432240,-3000.16756824,0.00015244,5]
[319510284,1710815432249,-1585.93280439,0.00015245,2]
[319510285,1710815432259,-150.0,0.00015255,2]
[319510286,1710815432268,-534.12503528,0.00015256,2]
[319510287,1710815432279,-4695.13339267,0.00015264,2]
[319510288,1710815432289,-15636.68296153,0.00015264,2]
[319510289,1710815432298,-691.56068766,0.0001527,2]
[319510290,1710815432307,-155.42100493,0.00016679,2]
[319510291,1710815432317,-161.0,0.00016781,2]
[319510292,1710815432327,-499.99,0.00016781,2]
[319510293,1710815432336,-4557.82,0.00016783,2]
[319510294,1710815432345,-750.0,0.00017,3]
[319510295,1710815432354,-1466.20257566,0.000182,2]
[319510296,1710815432366,-2204.56,0.00018457,2]
[319510297,1710815432375,-800.0,0.00019,3]
[319510298,1710815432384,-960.97075256,0.00019887,2]
[319510299,1710815432393,-4300.76140114,0.00019887,2]
[319510300,1710815432406,-374.12424202,0.00019887,2]
[319510301,1710815432415,-328.46711603,0.00019887,2]
[319510302,1710815432424,-3299.45955579,0.00019887,2]
[319510303,1710815432433,-164.87044309,0.00019887,2]
[319510304,1710815432442,-174.73917289,0.00019887,2]
[319510305,1710815432451,-5000.0,0.0002,2]